bitfinex/quotes_ETHUSD_20250517
["timestamp","ask_amount","ask_price","bid_price","bid_amount"]
[1747502230746,20.36435872,2469.1,2469.0,0.55490355]
[1747502230907,12.59835872,2469.1,2469.0,0.55490355]
[1747502231110,11.81605872,2469.1,2469.0,0.55490355]
[1747502231341,4.05005872,2469.1,2469.0,0.55490355]
[1747502231543,11.81605872,2469.1,2469.0,0.55490355]
[1747502233544,12.59835872,2469.1,2469.0,0.55490355]
[1747502235315,20.59835872,2469.1,2469.0,0.55490355]
[1747502235520,4.05130756,2468.4,2468.2,0.7846]
[1747502235762,11.81830756,2468.4,2468.2,0.7846]
[1747502236341,4.05137138,2468.3,2468.2,0.7846]
[1747502236540,4.05137138,2468.3,2467.8,1.2645761]
[1747502236741,4.05202804,2467.9,2467.8,1.2645761]
[1747502236945,4.05093216,2468.6,2467.8,1.2645761]
[1747502236946,1.9625843,2468.6,2467.8,1.2645761]
[1747502237239,11.81818739,2468.5,2467.9,5.1337089]
[1747502237455,4.05130118,2468.4,2467.9,5.1337089]
[1747502237655,12.05023477,2469.0,2467.9,5.1337089]
[1747502237656,4.05074286,2468.7,2468.3,4.83595216]
[1747502237862,4.05103942,2468.6,2468.3,0.7846]
[1747502238069,4.05119015,2468.5,2468.3,0.7846]
[1747502238236,4.05120725,2468.4,2468.3,0.7846]
[1747502238572,11.81794832,2468.6,2468.1,0.7619]
[1747502238725,4.05153553,2468.2,2468.1,0.7619]
[1747502238921,11.81794832,2468.6,2467.8,9.0108761]
[1747502238922,4.05202667,2468.0,2467.8,9.0108761]
[1747502239347,4.05202667,2468.0,2467.8,1.2418761]
[1747502239523,11.81878684,2468.1,2467.8,1.2418761]
[1747502239924,4.05189641,2468.0,2467.8,1.2418761]
[1747502240232,4.05202804,2467.9,2467.8,1.2418761]
[1747502240917,4.05195598,2468.0,2467.8,1.2418761]
[1747502241118,4.05202804,2467.9,2467.8,1.2418761]
[1747502241557,4.05202804,2467.9,2467.8,0.4799761]
[1747502243728,4.05237524,2467.7,2467.4,8.5309]
[1747502243957,4.05189308,2468.0,2467.5,0.55]
[1747502244160,7.769,2467.9,2467.7,0.779]
[1747502244565,4.05176837,2468.1,2467.7,4.83134234]
[1747502244769,4.05145698,2468.3,2467.8,4.60218419]
[1747502244975,11.81956862,2468.2,2467.8,0.55]
[1747502245265,4.05170848,2468.1,2467.8,0.55]
[1747502245465,7.768,2468.2,2467.8,0.55]
[1747502245466,11.81962036,2468.2,2467.8,4.60213842]
[1747502245647,4.0517059,2468.1,2467.8,0.55]
[1747502247775,7.768,2468.2,2467.7,0.779]
[1747502248097,7.768,2468.2,2467.5,1.329]
[1747502248098,4.05262903,2467.6,2467.5,1.329]
[1747502248571,4.05262903,2467.6,2467.5,0.779]
[1747502249650,4.05244209,2467.7,2467.5,0.779]
[1747502250351,4.05252066,2467.6,2467.5,0.779]
[1747502250834,4.05243219,2467.7,2467.5,0.779]
[1747502251037,4.05171122,2468.1,2467.5,0.779]
[1747502251350,4.05239452,2467.7,2467.5,0.779]
[1747502252580,4.05210417,2467.9,2467.5,0.779]
[1747502252784,4.05236661,2467.7,2467.5,0.779]
[1747502253671,7.769,2467.8,2467.5,0.779]
[1747502254484,11.82126217,2467.8,2467.5,0.779]
[1747502255885,7.769,2467.8,2467.5,4.52640255]
[1747502256083,11.82108634,2467.9,2467.5,0.47380605]
[1747502256250,11.82108634,2467.9,2467.5,5.07647105]
[1747502256582,11.82108634,2467.9,2467.5,1.02380605]
[1747502257480,4.05208634,2467.9,2467.5,5.0764569]
[1747502258183,4.05208634,2467.9,2467.5,1.02380605]
[1747502259059,4.05208634,2467.9,2467.5,5.07645026]
[1747502259256,7.769,2468.0,2467.6,0.55]
[1747502259485,0.7828,2468.7,2468.1,0.8224]
[1747502259805,0.7828,2468.7,2468.2,0.55]
[1747502259806,4.05111321,2468.5,2468.2,0.55]
[1747502259973,4.05121253,2468.4,2468.2,0.55]
[1747502260675,4.0511295,2468.5,2468.2,0.55]
[1747502261391,4.05122931,2468.4,2468.2,0.55]
[1747502262515,4.05111532,2468.5,2468.2,0.55]
[1747502263325,11.81911532,2468.5,2468.2,0.55]
[1747502263622,7.768,2468.5,2468.2,0.55]
[1747502265112,11.81906437,2468.5,2468.2,0.55]
[1747502265282,4.05153553,2468.2,2467.9,7.768]
[1747502265482,4.05169968,2468.1,2468.0,0.55]
[1747502265680,4.05162771,2468.2,2468.0,0.55]
[1747502265909,4.05138687,2468.3,2468.0,0.55]
[1747502266416,4.05157333,2468.2,2468.0,0.55]
[1747502266574,4.05146617,2468.3,2468.0,0.55]
[1747502266777,4.0514709,2468.3,2468.0,0.55]
[1747502267094,4.0516059,2468.2,2468.0,0.55]
[1747502267602,4.05160515,2468.2,2468.0,0.55]
[1747502267781,4.05145372,2468.3,2468.0,0.55]
[1747502267981,11.81825176,2468.4,2467.9,0.8224]
[1747502267982,4.05161259,2468.2,2467.9,0.8224]
[1747502268316,4.05176903,2468.1,2467.9,0.8224]
[1747502268813,4.05176903,2468.1,2467.8,0.55]
[1747502270122,4.05186399,2468.0,2467.8,0.55]
[1747502272439,4.05202804,2467.9,2467.7,0.8224]
[1747502272721,4.05219223,2467.8,2467.7,7.768]
[1747502273086,4.05219223,2467.8,2467.7,8.318]
[1747502275449,4.05219223,2467.8,2467.7,0.55]
[1747502275450,4.82879223,2467.8,2467.7,0.55]
[1747502275654,4.0523892,2467.7,2467.5,0.55]
[1747502275860,4.0526849,2467.5,2467.4,0.4799761]
[1747502275999,4.0526849,2467.5,2467.3,0.7536]
[1747502276199,4.0526849,2467.5,2467.0,22.02347165]
[1747502276200,0.7766,2467.4,2467.0,0.4799761]
[1747502276399,4.05334198,2467.1,2467.0,0.4799761]
[1747502276702,11.81934198,2467.1,2467.0,0.4799761]
[1747502277222,12.59594198,2467.1,2467.0,0.4799761]
[1747502277427,4.82994198,2467.1,2467.0,0.4799761]
[1747502277613,12.59594198,2467.1,2467.0,0.4799761]
[1747502278331,20.59594198,2467.1,2467.0,0.4799761]
[1747502278532,20.59594198,2467.1,2466.6,0.66666667]
[1747502278533,0.783,2466.8,2466.6,0.66666667]
[1747502278854,6.02588179,2466.7,2466.6,0.66666667]
[1747502279404,4.05399927,2466.7,2466.6,0.66666667]
[1747502280143,19.82199927,2466.7,2466.6,0.66666667]
[1747502280308,20.60499927,2466.7,2466.6,0.66666667]
[1747502281429,20.9132692,2466.7,2466.6,0.66666667]
[1747502281635,13.1452692,2466.7,2466.6,0.66666667]
[1747502281806,28.6962692,2466.7,2466.6,0.66666667]
[1747502282006,4.05597241,2465.5,2465.4,0.4799761]
[1747502282409,11.83497241,2465.5,2465.4,0.4799761]
[1747502282723,7.784,2466.0,2465.6,4.05580515]
[1747502282911,7.784,2466.0,2465.5,1.3563]
[1747502282912,7.784,2466.0,2465.7,0.54121052]
[1747502283109,11.83921845,2466.0,2465.7,0.54121052]
[1747502283350,4.83832765,2465.9,2465.1,7.772]
[1747502283640,4.05600426,2465.5,2465.1,7.772]
[1747502284515,4.05581997,2465.6,2465.3,0.8021]
[1747502285049,11.85181997,2465.6,2465.3,0.8021]
[1747502285256,7.796,2465.6,2464.9,0.8021]
[1747502285409,7.796,2465.6,2464.3,17.501]
[1747502285410,4.05745354,2464.6,2464.5,0.8021]
[1747502285609,4.05731608,2464.7,2464.3,7.772]
[1747502285610,4.05761817,2464.5,2464.3,7.772]
[1747502285807,7.824,2464.7,2464.2,0.8021]
[1747502285808,4.05778794,2464.4,2464.2,0.8021]
[1747502286149,4.05789378,2464.4,2464.2,0.8021]
[1747502286351,4.05750799,2464.6,2464.2,0.8021]
[1747502286550,7.829,2465.0,2464.6,0.55]
[1747502286840,7.829,2465.0,2464.7,4.05727825]
[1747502287045,7.833,2465.1,2464.8,0.8021]
[1747502287220,11.88964234,2465.1,2464.8,0.8021]
[1747502287426,4.0566499,2465.1,2464.8,0.8021]
[1747502287651,11.8886499,2465.1,2464.8,0.8021]
[1747502287809,7.832,2465.1,2464.8,5.40007011]
[1747502288012,4.05598107,2465.5,2464.8,5.40007011]
[1747502288013,7.832,2465.3,2464.9,0.55]
[1747502288248,4.05656153,2465.2,2464.8,0.8021]
[1747502288449,11.88833839,2465.3,2464.8,0.8021]
[1747502288632,4.05648564,2465.2,2464.8,0.8021]
[1747502288828,4.05670569,2465.1,2464.8,0.8021]
[1747502289036,4.056466,2465.2,2464.8,0.8021]
[1747502289348,4.05689023,2465.0,2464.5,0.8021]
[1747502289531,4.05672208,2465.1,2464.6,4.05744923]
[1747502290049,7.848,2465.0,2464.5,0.8021]
[1747502290255,7.849,2465.1,2464.8,4.05700758]
[1747502290827,7.849,2465.1,2464.7,4.05716882]
[1747502291043,7.849,2465.1,2464.8,4.60710068]
[1747502291244,7.849,2465.1,2464.8,0.55]
[1747502291553,7.846,2465.4,2465.0,4.0566313]
[1747502292548,4.05599986,2465.5,2465.0,4.0566313]
[1747502292755,11.89816707,2465.4,2464.9,12.69398737]
[1747502292957,7.842,2465.4,2465.0,4.05676828]
[1747502293149,11.89815615,2465.4,2464.9,12.69400611]
[1747502293350,4.05630206,2465.3,2464.9,12.69400611]
[1747502293555,4.05650715,2465.2,2464.9,0.8021]
[1747502293759,7.842,2465.4,2464.9,0.8021]
[1747502293760,4.05637,2465.3,2464.9,0.8021]
[1747502294124,4.05674798,2465.1,2464.9,0.8021]
[1747502294321,8.768,2465.1,2464.2,0.8276]
[1747502294525,4.05783861,2464.4,2464.2,0.8276]
[1747502294823,7.861,2464.5,2464.0,0.6667]
[1747502295039,4.05827685,2464.1,2464.0,0.6667]
[1747502295239,4.05818755,2464.2,2464.0,0.6667]
[1747502295435,4.05761817,2464.5,2464.0,0.6667]
[1747502295640,7.867,2464.4,2464.0,0.6667]
[1747502295842,4.05823335,2464.2,2464.0,0.6667]
[1747502296428,4.05816964,2464.2,2464.0,0.6667]
[1747502297368,7.867,2464.4,2464.0,0.6667]
[1747502297541,4.05786374,2464.4,2464.0,0.6667]
[1747502297745,11.91597467,2464.3,2464.0,0.6667]
[1747502298138,4.8255018,2464.6,2464.0,0.6667]
[1747502298343,4.05779675,2464.4,2464.0,0.6667]
[1747502298741,1.25055018,2464.6,2464.0,4.72507637]
[1747502298954,3.78759597,2464.9,2464.3,4.05794749]
[1747502298955,0.768,2464.9,2464.3,4.05794749]
[1747502299136,7.857,2464.8,2464.3,0.55]
[1747502299462,0.768,2464.7,2464.2,0.55]
[1747502299662,4.05788596,2464.4,2464.0,0.6667]
[1747502299861,4.05773166,2464.5,2464.0,0.6667]
[1747502299862,4.05827685,2464.1,2464.0,0.6667]
[1747502301432,4.82627685,2464.1,2464.0,0.6667]
[1747502301837,0.768,2464.1,2464.0,0.6667]
[1747502302174,4.05827685,2464.1,2464.0,0.6667]
[1747502302740,4.05771489,2464.5,2464.0,12.56312298]
[1747502303054,11.97371489,2464.5,2464.0,8.5047]
[1747502303271,4.05786244,2464.4,2464.0,8.5047]
[1747502304071,4.05757566,2464.6,2464.0,12.56303688]
[1747502304306,7.913,2464.8,2464.3,4.60791248]
[1747502304462,11.97021031,2464.8,2464.3,4.60791248]
[1747502304658,0.8167,2465.3,2464.5,0.55]
[1747502304863,11.972466,2465.2,2464.8,0.55]
[1747502305109,4.05712431,2464.8,2464.7,0.7922]
[1747502305471,4.05728891,2464.7,2464.6,7.839]
[1747502305669,4.05718146,2464.8,2464.6,7.839]
[1747502306176,4.05732993,2464.7,2464.5,0.55]
[1747502306379,4.05726135,2464.8,2464.6,7.839]
[1747502306688,7.916,2465.2,2464.6,7.839]
[1747502306870,4.05704196,2464.9,2464.6,7.839]
[1747502307576,4.05712713,2464.8,2464.4,0.7922]
[1747502307789,4.05720216,2464.8,2464.4,8.6312]
[1747502308294,8.8167,2465.3,2464.5,0.55]
[1747502308493,8.8167,2465.3,2464.7,4.05728066]
[1747502308494,4.05675572,2465.1,2464.7,4.05728066]
[1747502308663,4.05675572,2465.1,2464.7,0.55]
[1747502308865,4.05681066,2465.0,2464.7,0.55]
[1747502309064,4.05696129,2464.9,2464.6,0.55]
[1747502309260,4.05688796,2465.0,2464.6,0.55]
[1747502309466,4.05688796,2465.0,2464.8,0.001996]
[1747502310370,4.05695971,2464.9,2464.8,0.001996]
[1747502310600,4.05683696,2465.0,2464.8,0.001996]
[1747502311802,4.05679513,2465.0,2464.8,0.001996]
[1747502312405,4.05695971,2464.9,2464.8,0.001996]
[1747502313400,4.0565488,2465.2,2464.8,0.001996]
[1747502313578,4.05666205,2465.1,2464.8,0.001996]
[1747502314203,4.05695971,2464.9,2464.8,0.001996]
[1747502316704,11.99095971,2464.9,2464.8,0.001996]
[1747502317009,11.98995971,2464.9,2464.8,0.001996]
[1747502317507,4.05648071,2465.2,2464.8,0.001996]
[1747502317676,7.935,2465.1,2464.8,0.001996]
[1747502318335,4.05669622,2465.1,2464.8,0.001996]
[1747502318489,4.05664065,2465.1,2464.8,0.001996]
[1747502320903,4.87387685,2465.5,2464.8,0.001996]
[1747502320904,11.97946894,2465.2,2464.8,4.05910227]
[1747502321423,7.92,2465.2,2464.9,0.55]
[1747502321595,7.92,2465.2,2464.8,0.551996]
[1747502321924,7.92,2465.2,2464.8,4.60903302]
[1747502322223,4.05640659,2465.3,2464.8,4.60903302]
[1747502322425,11.97240659,2465.3,2464.8,4.60903302]
[1747502322620,4.05647499,2465.2,2464.8,0.551996]
[1747502322826,11.97234778,2465.3,2464.8,0.551996]
[1747502323024,4.0567563,2465.1,2464.8,0.551996]
[1747502323231,4.05677701,2465.1,2464.8,0.551996]
[1747502325401,4.05646711,2465.2,2464.8,0.551996]
[1747502325832,4.05672434,2465.1,2464.8,0.551996]
[1747502326015,4.056466,2465.2,2464.8,0.551996]
[1747502326217,4.05669511,2465.1,2464.8,0.551996]
[1747502326395,4.05695971,2464.9,2464.8,0.001996]
[1747502326600,4.05695971,2464.9,2464.8,7.937996]
[1747502328832,4.05688289,2465.0,2464.8,7.937996]
[1747502329133,4.05688289,2465.0,2464.8,0.001996]
[1747502329434,8.30236145,2465.7,2464.8,11.99403145]
[1747502329637,11.93938012,2465.3,2464.8,11.99403145]
[1747502329834,4.05648231,2465.2,2464.8,11.99403145]
[1747502330332,7.883,2465.3,2464.8,0.001996]
[1747502330542,4.05661298,2465.2,2464.8,0.001996]
[1747502330840,4.05675592,2465.1,2464.8,0.825396]
[1747502331343,4.05661298,2465.2,2464.8,0.825396]
[1747502331752,11.95737366,2465.3,2464.9,4.05695514]
[1747502332046,4.0564835,2465.2,2464.9,0.55]
[1747502332345,4.05663432,2465.1,2464.9,0.55]
[1747502332716,4.056556,2465.2,2464.9,0.55]
[1747502336887,7.878,2465.3,2464.9,4.60689076]
[1747502337040,11.93430649,2465.3,2464.9,4.60689076]
[1747502338186,11.93430649,2465.3,2464.9,0.55]
[1747502339656,0.8222,2465.7,2464.9,4.60683516]
[1747502339966,4.05614482,2465.4,2465.0,4.05678021]
[1747502340166,4.05631168,2465.3,2464.9,4.60688203]
[1747502340383,0.8222,2465.7,2465.2,0.7632]
[1747502340384,8.0,2465.7,2465.2,0.7632]
[1747502340590,1.25112287,2466.1,2465.3,0.55]
[1747502340835,4.53833317,2466.1,2465.6,4.05567081]
[1747502340979,0.48332287,2466.1,2465.9,0.55]
[1747502341143,0.48332287,2466.1,2465.9,4.60522619]
[1747502341344,0.48332287,2466.1,2466.0,5.36835004]
[1747502341545,0.03020768,2466.8,2466.5,0.7632]
[1747502341780,0.03020768,2466.8,2466.6,7.935]
[1747502342105,4.05399927,2466.7,2466.6,7.935]
[1747502342766,0.03020768,2466.8,2466.6,7.935]
[1747502342945,4.05399927,2466.7,2466.6,7.935]
[1747502343372,4.05399927,2466.7,2466.5,0.7632]
[1747502343584,4.85186908,2466.8,2466.1,7.933]
[1747502343797,4.05485213,2466.2,2466.1,7.933]
[1747502344985,11.96573037,2466.3,2466.1,7.933]
[1747502346101,4.05482118,2466.2,2466.1,7.933]
[1747502347569,4.05507828,2466.1,2465.9,7.895]
[1747502347759,4.05482118,2466.2,2465.9,7.895]
[1747502347955,4.05504638,2466.1,2465.9,7.895]
[1747502348180,7.894,2466.3,2465.9,7.895]
[1747502348382,4.05510035,2466.1,2465.9,7.895]
[1747502348767,4.05510035,2466.1,2465.8,0.55]
[1747502348980,4.05510035,2466.1,2465.9,7.895]
[1747502349506,4.05510035,2466.1,2465.8,0.55]
[1747502349691,4.05510035,2466.1,2465.9,7.895]
[1747502350079,4.05515004,2466.0,2465.9,7.895]
[1747502353785,4.05493223,2466.2,2465.9,7.895]
[1747502353980,4.05499713,2466.1,2465.9,7.895]
[1747502354182,4.05515004,2466.0,2465.9,7.895]
[1747502355299,4.05509069,2466.1,2465.9,7.895]
[1747502356182,4.05515004,2466.0,2465.9,7.895]
[1747502357382,4.05508404,2466.1,2465.9,7.895]
[1747502358716,7.894,2466.3,2465.9,7.895]
[1747502358894,4.05500559,2466.1,2465.9,7.895]
[1747502360420,11.89573896,2466.3,2465.9,9.16638029]
[1747502360824,7.847,2466.4,2466.0,1.3375]
[1747502361514,6.77018262,2467.0,2466.4,0.7875]
[1747502361685,3.78759597,2467.7,2466.7,0.7875]
[1747502361686,6.77018262,2467.4,2466.7,0.7875]
[1747502361885,9.9927594,2467.4,2466.8,4.60373593]
[1747502362085,4.05310298,2467.3,2466.8,4.60373593]
[1747502362517,4.05358708,2467.0,2466.8,0.55]
[1747502364707,4.05343524,2467.1,2466.8,0.55]
[1747502364896,4.05354089,2467.0,2466.8,0.55]
[1747502365100,4.05343497,2467.1,2466.8,0.55]
[1747502365297,4.05343497,2467.1,2466.8,1.18147838]
[1747502365523,0.7703,2467.1,2466.6,7.893]
[1747502365813,4.05412296,2466.7,2466.5,7.893]
[1747502366018,4.05392452,2466.8,2466.5,7.893]
[1747502366218,4.05400063,2466.7,2466.5,7.893]
[1747502367221,4.05449237,2466.4,2466.3,17.9929761]
[1747502367520,4.05449237,2466.4,2466.3,0.4799761]
[1747502367905,4.05438556,2466.5,2466.3,0.4799761]
[1747502368385,4.05438556,2466.5,2466.2,7.893]
[1747502369118,4.05458938,2466.4,2466.2,7.893]
[1747502369314,7.853,2466.6,2466.2,7.893]
[1747502369716,4.0546481,2466.4,2466.2,7.893]
[1747502370404,4.05438511,2466.5,2466.2,7.893]
[1747502370605,0.7703,2466.8,2466.3,0.55]
[1747502370808,11.89913795,2466.7,2466.3,0.55]
[1747502370993,4.05418369,2466.6,2466.4,0.7657]
[1747502371396,11.89904824,2466.7,2466.4,0.7657]
[1747502371595,4.05390195,2466.8,2466.4,4.82015379]
[1747502371795,4.05417617,2466.6,2466.4,2.62462936]
[1747502372133,4.05417617,2466.6,2466.4,0.7657]
[1747502372433,4.05351073,2467.0,2466.4,4.82014822]
[1747502372740,4.05351073,2467.0,2466.5,4.60432526]
[1747502372741,4.0537574,2466.9,2466.5,4.60432526]
[1747502373092,7.841,2467.0,2466.5,4.60432526]
[1747502373093,4.05357917,2467.0,2466.6,4.05415575]
[1747502373291,11.89329078,2467.2,2466.8,1.3034]
[1747502373591,4.05334716,2467.1,2466.8,1.3034]
[1747502373929,4.05324845,2467.2,2466.8,2.62843076]
[1747502376751,0.8023,2467.6,2467.0,0.55]
[1747502376898,4.05263836,2467.6,2467.3,0.7892]
[1747502377230,7.83897753,2468.3,2467.3,0.7892]
[1747502377231,0.8023,2468.1,2467.4,0.55]
[1747502377436,0.8023,2468.1,2467.5,4.05261079]
[1747502377437,11.88799807,2468.0,2467.5,4.05261079]
[1747502377604,7.836,2468.0,2467.4,0.55]
[1747502377927,4.05262466,2467.6,2467.5,7.835]
[1747502378631,4.05219662,2467.8,2467.5,7.835]
[1747502379112,4.05236525,2467.7,2467.3,0.7892]
[1747502379429,4.05284915,2467.4,2467.0,9.0299761]
[1747502379640,4.05284915,2467.4,2467.2,0.7815]
[1747502379827,4.05277963,2467.5,2467.2,0.7815]
[1747502380133,4.05285567,2467.4,2467.2,0.7815]
[1747502380535,4.05293514,2467.4,2467.2,0.7815]
[1747502380828,4.05265285,2467.6,2467.2,1.33130057]
[1747502381041,11.87409598,2467.9,2467.2,1.33130057]
[1747502381242,4.05280374,2467.5,2467.2,1.33130057]
[1747502382037,4.05269654,2467.5,2467.2,1.33130057]
[1747502382512,4.05265596,2467.6,2467.2,1.33130057]
[1747502382703,4.05265596,2467.6,2467.3,1.87186046]
[1747502383213,4.05255346,2467.6,2467.3,1.87186046]
[1747502383449,4.05281131,2467.5,2467.3,1.87186046]
[1747502384733,4.05258168,2467.6,2467.3,1.87186046]
[1747502385955,4.05241177,2467.7,2467.3,1.87186046]
[1747502386250,4.05241177,2467.7,2467.5,0.55]
[1747502386629,4.05252066,2467.6,2467.5,0.55]
[1747502386833,4.0526849,2467.5,2467.4,0.55]
[1747502387331,4.05284915,2467.4,2467.2,0.7815]
[1747502387528,4.0526849,2467.5,2467.2,0.7815]
[1747502387529,4.05301341,2467.3,2467.2,0.7815]
[1747502387727,4.05301341,2467.3,2467.2,8.6145]
[1747502388045,4.05293011,2467.4,2467.2,9.47595]
[1747502388418,4.05294699,2467.4,2467.2,9.47595]
[1747502389851,4.05270166,2467.5,2467.2,9.47595]
[1747502390451,4.05249827,2467.7,2467.3,0.55]
[1747502390651,4.05236425,2467.7,2467.4,1.40791122]
[1747502390853,4.05253553,2467.6,2467.4,1.40791122]
[1747502394451,4.0526849,2467.5,2467.4,1.95791122]
[1747502395062,4.0526165,2467.6,2467.4,1.95791122]
[1747502395240,4.0526849,2467.5,2467.4,1.95791122]
[1747502395837,4.0522646,2467.8,2467.4,1.95791122]
[1747502396043,4.0522646,2467.8,2467.6,0.823]
[1747502396551,4.0522646,2467.8,2467.7,7.832]
[1747502397172,4.05201579,2468.0,2467.7,7.832]
[1747502397461,4.05202154,2468.0,2467.7,7.832]
[1747502397653,4.05202154,2468.0,2467.7,9.16287054]
[1747502398162,4.0520584,2467.9,2467.7,9.16287054]
[1747502398370,4.05219223,2467.8,2467.7,9.71287054]
[1747502399572,4.0520584,2467.9,2467.4,2.23091122]
[1747502399779,4.05243285,2467.7,2467.4,7.832]
[1747502399938,4.0526849,2467.5,2467.4,7.832]
[1747502400138,0.8272,2467.8,2467.4,7.832]
[1747502400475,0.8272,2468.0,2467.4,10.88089543]
[1747502400654,4.05209363,2467.9,2467.4,10.88089543]
[1747502400859,4.05237576,2467.7,2467.4,10.88089543]
[1747502401153,4.0526849,2467.5,2467.4,3.04889543]
[1747502401345,4.0526849,2467.5,2467.4,8.21719782]
[1747502406296,4.0526849,2467.5,2467.4,0.38519782]
[1747502406454,12.6628849,2467.5,2467.4,0.38519782]
[1747502408860,4.05317769,2467.2,2467.1,7.832]
[1747502409055,4.05284915,2467.4,2467.1,7.832]
[1747502409796,4.05317769,2467.2,2467.1,7.832]
[1747502410197,4.05317769,2467.2,2467.1,8.21802604]
[1747502410996,4.88037769,2467.2,2467.1,0.38602604]
[1747502411194,14.85104111,2467.2,2467.1,0.38602604]
[1747502411394,20.79092373,2467.2,2467.1,0.38602604]
[1747502412110,26.60426031,2467.2,2467.1,0.38602604]
[1747502412601,4.05380316,2466.9,2466.7,8.2639761]
[1747502412805,4.05380316,2466.9,2466.7,0.4799761]
[1747502413011,4.88103492,2466.8,2466.7,0.4799761]
[1747502413219,12.66403492,2466.8,2466.7,0.4799761]
[1747502413782,4.05418269,2466.6,2466.3,0.38546493]
[1747502414215,4.05407481,2466.7,2466.3,0.38546493]
[1747502414385,4.05407481,2466.7,2466.3,2.14366979]
[1747502414872,11.83790907,2466.8,2466.4,0.55]
[1747502415385,4.05400861,2466.7,2466.4,0.55]
[1747502417315,4.05363615,2467.0,2466.6,0.7581]
[1747502417606,4.05348002,2467.1,2466.7,7.785]
[1747502417809,11.83748002,2467.1,2466.7,7.785]
[1747502418021,4.05399927,2466.7,2466.6,0.5362403]
[1747502418174,4.05399927,2466.7,2466.6,7.785]
[1747502419582,4.05390467,2466.8,2466.6,7.785]
[1747502419824,4.05390467,2466.8,2466.0,0.4799761]
[1747502419825,0.7981,2466.8,2466.0,1.2745761]
[1747502420006,4.05441725,2466.5,2466.3,7.785]
[1747502420318,4.05423082,2466.6,2466.3,7.785]
[1747502420510,4.05441891,2466.5,2466.3,8.61149761]
[1747502422123,4.05407362,2466.7,2466.3,8.61149761]
[1747502422328,4.05425122,2466.6,2466.3,8.61149761]
[1747502423638,0.7798,2467.1,2466.4,1.3824]
[1747502423839,4.05358295,2467.0,2466.5,4.05422472]
[1747502424130,11.83841172,2467.1,2466.6,5.00318829]
[1747502424310,11.83841172,2467.1,2466.8,0.8324]
[1747502424311,4.05341172,2467.1,2466.8,0.8324]
[1747502424513,4.05341172,2467.1,2466.8,8.6174]
[1747502424912,4.05352517,2467.0,2466.8,8.6174]
[1747502425101,4.05367059,2466.9,2466.8,7.785]
[1747502425296,4.05419064,2466.6,2466.5,7.785]
[1747502426434,4.05482118,2466.2,2465.9,0.4799761]
[1747502426635,4.05482118,2466.2,2466.0,9.58329761]
[1747502426834,4.0549856,2466.1,2466.0,7.785]
[1747502427805,4.0549856,2466.1,2466.0,8.16999025]
[1747502429295,4.0549856,2466.1,2466.0,7.785]
[1747502432875,4.05484409,2466.2,2466.0,7.785]
[1747502433559,4.0549401,2466.2,2466.0,7.785]
[1747502433748,4.0549856,2466.1,2466.0,7.785]
[1747502434400,4.05465994,2466.3,2466.1,0.7756]
[1747502434547,13.93988262,2466.8,2466.2,0.55]
[1747502434747,4.054264,2466.6,2466.2,0.55]
[1747502435278,4.0543405,2466.5,2466.2,0.55]
[1747502435478,13.72588262,2466.8,2466.2,0.55]
[1747502435479,4.05452577,2466.4,2466.2,2.11944652]
[1747502435682,4.05465677,2466.3,2466.2,0.55]
[1747502436185,4.05465677,2466.3,2466.2,0.93491159]
[1747502436747,4.05465677,2466.3,2466.2,0.38491159]
[1747502437644,4.85815604,2466.5,2466.2,0.38491159]
[1747502437850,11.8403063,2466.6,2466.3,0.7756]
[1747502438051,9.99385033,2466.8,2466.4,4.05448827]
[1747502438250,9.97066342,2467.1,2466.4,0.55]
[1747502438251,0.8038,2467.1,2466.4,0.55]
[1747502438453,4.0538753,2466.8,2466.4,0.55]
[1747502438959,0.833,2467.3,2466.6,0.55]
[1747502439166,4.0535982,2467.0,2466.8,0.55]
[1747502439370,4.05338074,2467.1,2466.8,0.55]
[1747502439547,4.05321162,2467.2,2466.8,0.55]
[1747502439972,4.05338204,2467.1,2466.8,0.55]
[1747502440282,4.05338204,2467.1,2466.9,0.38491159]
[1747502440883,4.05331298,2467.2,2467.0,0.8234]
[1747502441286,4.05331298,2467.2,2466.9,1.31137958]
[1747502441511,4.05350628,2467.0,2466.9,1.47646799]
[1747502441857,4.05370082,2466.9,2466.7,0.54276826]
[1747502442075,4.05370082,2466.9,2466.8,7.785]
[1747502442755,4.05370082,2466.9,2466.8,0.38525562]
[1747502443294,11.83870082,2466.9,2466.8,0.38525562]
[1747502443493,12.58880082,2466.9,2466.8,0.38525562]
[1747502444384,4.05430704,2466.6,2466.4,0.4799761]
[1747502444701,4.05430704,2466.6,2466.4,1.50131387]
[1747502445200,4.05432799,2466.5,2466.4,2.05131387]
[1747502445388,4.0542575,2466.6,2466.4,1.50131387]
[1747502445591,4.0542575,2466.6,2466.4,0.38523796]
[1747502445793,4.05408188,2466.7,2466.4,0.38523796]
[1747502447299,4.05408188,2466.7,2466.5,0.38523796]
[1747502447866,4.05416362,2466.6,2466.5,0.38523796]
[1747502448277,4.0540734,2466.7,2466.5,0.38523796]
[1747502448562,8.0,2467.4,2466.7,0.55]
[1747502448793,4.05320096,2467.2,2466.8,7.785]
[1747502449483,4.05295887,2467.4,2466.9,4.60353334]
[1747502449685,0.7703,2467.6,2467.1,0.55]
[1747502449999,4.05252782,2467.6,2467.1,4.60322504]
[1747502450785,4.0523903,2467.7,2467.1,0.55]
[1747502451098,4.05254991,2467.6,2467.3,0.55]
[1747502451395,4.05238953,2467.7,2467.3,8.9324367]
[1747502451595,11.83628515,2467.8,2467.3,12.98542094]
[1747502452701,4.0523612,2467.7,2467.3,8.9324367]
[1747502453798,4.0527402,2467.5,2467.4,7.784]
[1747502457825,4.05286078,2467.4,2467.1,0.55]
[1747502457985,4.05286078,2467.4,2467.2,7.783]
[1747502458183,4.05301341,2467.3,2467.2,7.783]
[1747502458604,4.05290764,2467.4,2467.2,7.783]
[1747502460582,0.8,2467.7,2467.2,7.783]
[1747502460823,4.05243156,2467.7,2467.3,5.43269053]
[1747502461430,4.87501734,2468.3,2467.7,4.05232152]
[1747502461598,11.83460818,2468.2,2467.8,0.8297]